Workbook

Sheet EOCCO County Level
A1: EOCCO Incentive Measures
C2: EOCCO Targets | H2: Baker County | M2: Gilliam County | R2: Grant County | W2: Harney County | AB2: Lake County | AG2: Malheur County | AL2: Morrow County | AQ2: Sherman County | AV2: Umatilla County | BA2: Union County | BF2: Wallowa County | BK2: Wheeler County | BP2: EOCCO Final Rates
C3: 2014 | D3: 2015 | E3: 2016 | F3: 2017 | G3: 2018 | H3: 2014 | I3: 2015 | J3: 2016 | K3: 2017 | L3: 2018 | M3: 2014 | N3: 2015 | O3: 2016 | P3: 2017 | Q3: 2018 | R3: 2014 | S3: 2015 | T3: 2016 | U3: 2017 | V3: 2018 | W3: 2014 | X3: 2015 | Y3: 2016 | Z3: 2017 | AA3: 2018 | AB3: 2014 | AC3: 2015 | AD3: 2016 | AE3: 2017 | AF3: 2018 | AG3: 2014 | AH3: 2015 | AI3: 2016 | AJ3: 2017 | AK3: 2018 | AL3: 2014 | AM3: 2015 | AN3: 2016 | AO3: 2017 | AP3: 2018 | AQ3: 2014 | AR3: 2015 | AS3: 2016 | AT3: 2017 | AU3: 2018 | AV3: 2014 | AW3: 2015 | AX3: 2016 | AY3: 2017 | AZ3: 2018 | BA3: 2014 | BB3: 2015 | BC3: 2016 | BD3: 2017 | BE3: 2018 | BF3: 2014 | BG3: 2015 | BH3: 2016 | BI3: 2017 | BJ3: 2018 | BK3: 2014 | BL3: 2015 | BM3: 2016 | BN3: 2017 | BO3: 2018 | BP3: 2014 | BQ3: 2015 | BR3: 2016 | BS3: 2017 | BT3: 2018
A4: 1 | B4: Adolescent Well Care Visits | C4: 0.258 | D4: 0.277 | E4: 0.291 | F4: 0.373 | G4: 0.406 | H4: 0.175 | I4: 0.222 | J4: 0.324 | K4: 0.331 | L4: 0.3849206349 | M4: 0.286 | N4: 0.32 | O4: 0.3170731707 | P4: 0.5 | Q4: 0.4893617021 | R4: 0.194 | S4: 0.233 | T4: 0.3505747126 | U4: 0.2984293194 | V4: 0.4741784038 | W4: 0.233 | X4: 0.263 | Y4: 0.2268041237 | Z4: 0.3650793651 | AA4: 0.4979253112 | AB4: 0.127 | AC4: 0.157 | AD4: 0.1692307692 | AE4: 0.3641304348 | AF4: 0.3524229075 | AG4: 0.202 | AH4: 0.308 | AI4: 0.4150197628 | AJ4: 0.3665667166 | AK4: 0.376124775 | AL4: 0.225 | AM4: 0.274 | AN4: 0.4260204082 | AO4: 0.4615384615 | AP4: 0.4526315789 | AQ4: 0.219 | AR4: 0.343 | AS4: 0.3684210526 | AT4: 0.4222222222 | AU4: 0.3695652174 | AV4: 0.263 | AW4: 0.264 | AX4: 0.326547922 | AY4: 0.3951342282 | AZ4: 0.4199643494 | BA4: 0.153 | BB4: 0.169 | BC4: 0.3690140845 | BD4: 0.3898305085 | BE4: 0.4725274725 | BF4: 0.357 | BG4: 0.308 | BH4: 0.3936170213 | BI4: 0.4787234043 | BJ4: 0.5170940171 | BK4: 0.12 | BL4: 0.548 | BM4: 0.2962962963 | BN4: 0.24 | BO4: 0.3666666667 | BP4: 0.239 | BQ4: 0.255 | BR4: 0.3512154233 | BS4: 0.3857999676 | BT4: 0.4152909337
J5: 124/383 | K5: 145/438 | L5: 194/504 | O5: 13/41 | P5: 17/34 | Q5: 23/47 | T5: 13/41 | U5: 57/191 | V5: 101/213 | Y5: 44/194 | Z5: 69/189 | AA5: 120/241 | AD5: 33/195 | AE5: 67/184 | AF5: 80/227 | AI5: 525/1265 | AJ5: 489/1334 | AK5: 627/1667 | AN5: 167/392 | AO5: 180/390 | AP5: 215/475 | AS5: 14/38 | AT5: 19/45 | AU5: 17/46 | AX5: 770/2358 | AY5: 942/2384 | AZ5: 1178/2805 | BC5: 262/710 | BD5: 299/767 | BE5: 430/910 | BH5: 74/188 | BI5: 90/188 | BJ5: 121/234 | BM5: 8/27 | BN5: 6/25 | BO5: 11/30 | BP5: 1579/6602 | BQ5: 1650/6483 | BR5: 2095/5965 | BS5: 2380/6169 | BT5: 3069/ 7390
A6: 2 | B6: Alcohol and Drug Misuse: SBIRT | C6: 0.038 | D6: 0.079 | E6: 0.118 | F6: 0.15 | G6: 0.12 | H6: 0.026 | I6: 0.057 | J6: 0.04677349502 | K6: 0.1097105509 | L6: =119/2107 -> 0.05647840532 | M6: 0.12 | N6: 0.132 | O6: 0.09829059829 | P6: 0.08415841584 | Q6: =23/210 -> 0.1095238095 | R6: 0.014 | S6: 0.025 | T6: 0.1494370522 | U6: 0.05341880342 | V6: =296/914 -> 0.3238512035 | W6: 0.503 | X6: 0.367 | Y6: 0.2238683128 | Z6: 0.1718538566 | AA6: =152/801 -> 0.1897627965 | AB6: 0.046 | AC6: 0.016 | AD6: 0.06659939455 | AE6: 0.1806282723 | AF6: =303/779 -> 0.3889602054 | AG6: 0.012 | AH6: 0.087 | AI6: 0.1226677253 | AJ6: 0.1339732054 | AK6: =734/5142 -> 0.1427460132 | AL6: 0.02 | AM6: 0.151 | AN6: 0.3124183007 | AO6: 0.2396624473 | AP6: =300/1055 -> 0.2843601896 | AQ6: 0.158 | AR6: 0.154 | AS6: 0.1790393013 | AT6: 0.1778846154 | AU6: =27/214 -> 0.1261682243 | AV6: 0.006 | AW6: 0.039 | AX6: 0.1634148859 | AY6: 0.1513906818 | AZ6: =1009/8333 -> 0.1210848434 | BA6: 0.115 | BB6: 0.186 | BC6: 0.298690205 | BD6: 0.2168874172 | BE6: =475/2520 -> 0.1884920635 | BF6: 0.032 | BG6: 0.083 | BH6: 0.09514925373 | BI6: 0.07628676471 | BJ6: =182/995 -> 0.1829145729 | BK6: 0.492 | BL6: 0.402 | BM6: 0.4256410256 | BN6: 0.385 | BO6: =119/201 -> 0.592039801 | BP6: 0.055 | BQ6: 0.088 | BR6: 0.1692911927 | BS6: 0.1525868533 | BT6: =3739/23271 -> 0.1606720811
J7: 108/2309 | K7: 235/2142 | L7: 119/2107 | O7: 23/234 | P7: 17/202 | Q7: 23/210 | T7: 146/977 | U7: 50/936 | V7: 296/914 | Y7: 272/1215 | Z7: 127/739 | AA7: 152/801 | AD7: 66/991 | AE7: 138/764 | AF7: 303/779 | AI7: 618/5038 | AJ7: 670/5001 | AK7: 734/5142 | AN7: 478/1530 | AO7: 284/1185 | AP7: 300/1055 | AS7: 41/229 | AT7: 37/208 | AU7: 27/214 | AX7: 1583/9687 | AY7: 1290/8521 | AZ7: 1009/8333 | BC7: 1049/3512 | BD7: 655/3020 | BE7: 475/2520 | BH7: 102/1072 | BI7: 83/1088 | BJ7: 182/995 | BM7: 83/195 | BN7: 77/200 | BO7: 119/201 | BP7: 965/17671 | BQ7: 2105/23846 | BR7: 4569/26989 | BS7: 3663/24006 | BT7: 3739/ 23271
A8: 3 | B8: Assessments for Children in DHS Custody | C8: 0.588 | D8: 0.382 | E8: 0.645 | F8: 0.76 | G8: 0.862 | H8: N/A | I8: N/A | J8: N/A | K8: N/A | L8: =10/14 -> 0.7142857143 | M8: N/A | N8: N/A | O8: N/A | P8: N/A | Q8: 1 | R8: N/A | S8: N/A | T8: N/A | U8: N/A | V8: 1 | W8: N/A | X8: N/A | Y8: N/A | Z8: N/A | AA8: 1 | AB8: N/A | AC8: N/A | AD8: N/A | AE8: N/A | AF8: 1 | AG8: N/A | AH8: N/A | AI8: N/A | AJ8: N/A | AK8: =9/12 -> 0.75 | AL8: N/A | AM8: N/A | AN8: N/A | AO8: N/A | AP8: 1 | AQ8: N/A | AR8: N/A | AS8: N/A | AT8: N/A | AU8: 1 | AV8: N/A | AW8: N/A | AX8: N/A | AY8: N/A | AZ8: =23/29 -> 0.7931034483 | BA8: N/A | BB8: N/A | BC8: N/A | BD8: N/A | BE8: =13/15 -> 0.8666666667 | BF8: N/A | BG8: N/A | BH8: N/A | BI8: N/A | BJ8: 1 | BK8: N/A | BL8: N/A | BM8: N/A | BN8: N/A | BO8: N/A | BP8: 0.324 | BQ8: 0.615 | BR8: 0.7303370787 | BS8: 0.832 | BT8: 0.817
L9: 10/14 | Q9: 1/1 | V9: 2/2 | AA9: 1/1 | AF9: 10/10 | AK9: 9/12 | AP9: 2/2 | AU9: 1/1 | AZ9: 23/29 | BE9: 13/15 | BJ9: 3/3 | BP9: 12/37 | BQ9: 64/104 | BR9: 65/89 | BS9: 89/107 | BT9: 89/109
A10: 4 | B10: Childhood Immunization Status Combo 2 | C10: N/A | D10: N/A | E10: 0.741 | F10: 0.729 | G10: 0.791 | H10: N/A | I10: N/A | J10: 0.6885245902 | K10: 0.84 | L10: =41/58 -> 0.7068965517 | M10: N/A | N10: N/A | O10: 0.2 | P10: 0.8571428571 | Q10: 1 | R10: N/A | S10: N/A | T10: 0.652173913 | U10: 0.6666666667 | V10: =5/13 -> 0.3846153846 | W10: N/A | X10: N/A | Y10: 0.6388888889 | Z10: 0.7916666667 | AA10: =39/47 -> 0.829787234 | AB10: N/A | AC10: N/A | AD10: 0.55 | AE10: 0.7727272727 | AF10: =15/21 -> 0.7142857143 | AG10: N/A | AH10: N/A | AI10: 0.79375 | AJ10: 0.8242424242 | AK10: =165/209 -> 0.7894736842 | AL10: N/A | AM10: N/A | AN10: 0.8 | AO10: 0.6875 | AP10: =46/51 -> 0.9019607843 | AQ10: N/A | AR10: N/A | AS10: 0.6666666667 | AT10: 0.5 | AU10: 1 | AV10: N/A | AW10: N/A | AX10: 0.7172774869 | AY10: 0.7914110429 | AZ10: =258/357 -> 0.7226890756 | BA10: N/A | BB10: N/A | BC10: 0.5714285714 | BD10: 0.6666666667 | BE10: =73/108 -> 0.6759259259 | BF10: N/A | BG10: N/A | BH10: 0.7894736842 | BI10: 0.7826086957 | BJ10: =19/27 -> 0.7037037037 | BK10: N/A | BL10: N/A | BM10: 0.75 | BN10: 0.5 | BO10: =3/4 -> 0.75 | BP10: N/A | BQ10: 0.733 | BR10: 0.7078142695 | BS10: 0.7730673317 | BT10: =696/904 -> 0.7699115044
J11: 42/61 | K11: 42/50 | L11: 41/58 | O11: 1/5 | P11: 6/7 | Q11: 3/3 | T11: 15/23 | U11: 14/21 | V11: 5/13 | Y11: 23/36 | Z11: 19/24 | AA11: 39/47 | AD11: 11/20 | AE11: 17/22 | AF11: 15/21 | AI11: 127/160 | AJ11: 136/165 | AK11: 165/209 | AN11: 52/65 | AO11: 44/64 | AP11: 46/51 | AS11: 2/3 | AT11: 1/2 | AU11: 2/2 | AX11: 274/382 | AY11: 258/326 | AZ11: 258/357 | BC11: 60/105 | BD11: 64/96 | BE11: 73/108 | BH11: 15/19 | BI11: 18/23 | BJ11: 19/27 | BM11: 3/4 | BN11: 1/2 | BO11: 3/4 | BQ11: 801/1093 | BR11: 625/883 | BS11: 620/802 | BT11: 696/904
A12: 5 | B12: Colorectal Cancer Screening | C12: 0.47 | D12: 0.383 | E12: 0.39 | F12: 0.439 | G12: 0.468 | H12: N/A | I12: 0.259 | J12: 0.3473684211 | K12: 0.4173669468 | L12: =201/384 -> 0.5234375 | M12: N/A | N12: 0.158 | O12: 0.1851851852 | P12: 0.2962962963 | Q12: =11/31 -> 0.3548387097 | R12: N/A | S12: 0.265 | T12: 0.2452830189 | U12: 0.251497006 | V12: =54/166 -> 0.3253012048 | W12: N/A | X12: 0.292 | Y12: 0.3674418605 | Z12: 0.4842105263 | AA12: =99/208 -> 0.4759615385 | AB12: N/A | AC12: 0.156 | AD12: 0.2171428571 | AE12: 0.450867052 | AF12: =91/206 -> 0.4417475728 | AG12: N/A | AH12: 0.309 | AI12: 0.3803786575 | AJ12: 0.4359861592 | AK12: =310/654 -> 0.4740061162 | AL12: N/A | AM12: 0.341 | AN12: 0.3384615385 | AO12: 0.4047619048 | AP12: =81/164 -> 0.493902439 | AQ12: N/A | AR12: 0.185 | AS12: 0.2926829268 | AT12: 0.4193548387 | AU12: =7/29 -> 0.2413793103 | AV12: N/A | AW12: 0.311 | AX12: 0.3758278146 | AY12: 0.4405850091 | AZ12: =501/1167 -> 0.4293059126 | BA12: N/A | BB12: 0.298 | BC12: 0.3415841584 | BD12: 0.3910761155 | BE12: =175/421 -> 0.4156769596 | BF12: N/A | BG12: 0.328 | BH12: 0.3936170213 | BI12: 0.5368421053 | BJ12: =117/197 -> 0.5939086294 | BK12: N/A | BL12: 0.262 | BM12: 0.3488372093 | BN12: 0.4102564103 | BO12: =23/50 -> 0.46 | BP12: 0.3527980535 | BQ12: 0.36 | BR12: 0.409 | BS12: 0.448 | BT12: =198/410 -> 0.4829268293
J13: 132/380 | K13: 149/357 | L13: 201/384 | O13: 5/27 | P13: 8/27 | Q13: 11/31 | T13: 39/159 | U13: 42/167 | V13: 54/166 | Y13: 79/215 | Z13: 92/190 | AA13: 99/208 | AD13: 38/175 | AE13: 78/173 | AF13: 91/206 | AI13: 221/581 | AJ13: 252/578 | AK13: 310/654 | AN13: 66/195 | AO13: 68/168 | AP13: 81/164 | AS13: 12/41 | AT13: 13/31 | AU13: 7/29 | AX13: 454/1208 | AY13: 482/1094 | AZ13: 501/1167 | BC13: 138/404 | BD13: 149/381 | BE13: 175/421 | BH13: 74/188 | BI13: 102/190 | BJ13: 117/197 | BM13: 15/43 | BN13: 16/39 | BO13: 23/50 | BP13: 145/411 | BQ13: 148/411 | BR13: 168/411 | BS13: 184/411 | BT13: 198/410
A14: 6 | B14: Dental Sealants | C14: N/A | D14: 0.079 | E14: 0.174 | F14: 0.2 | G14: 0.229 | H14: N/A | I14: 0.092 | J14: 0.1491395793 | K14: 0.2907563025 | L14: =150/664 -> 0.2259036145 | M14: N/A | N14: 0.286 | O14: 0.22 | P14: 0.3220338983 | Q14: =17/66 -> 0.2575757576 | R14: N/A | S14: 0.048 | T14: 0.3157894737 | U14: 0.40625 | V14: =72/183 -> 0.393442623 | W14: N/A | X14: 0.09 | Y14: 0.1145374449 | Z14: 0.4248927039 | AA14: =69/297 -> 0.2323232323 | AB14: N/A | AC14: 0.125 | AD14: 0.2735426009 | AE14: 0.3214285714 | AF14: =84/275 -> 0.3054545455 | AG14: N/A | AH14: 0.168 | AI14: 0.1817018554 | AJ14: 0.2297453704 | AK14: =498/2059 -> 0.241864983 | AL14: N/A | AM14: 0.129 | AN14: 0.3276595745 | AO14: 0.2438478747 | AP14: =179/550 -> 0.3254545455 | AQ14: N/A | AR14: 0 | AS14: 0.1458333333 | AT14: 0.3043478261 | AU14: =14/46 -> 0.3043478261 | AV14: N/A | AW14: 0.076 | AX14: 0.1810017271 | AY14: 0.2395110671 | AZ14: =885/3438 -> 0.257417103 | BA14: N/A | BB14: 0.043 | BC14: 0.03603603604 | BD14: 0.17775571 | BE14: =178/1143 -> 0.1557305337 | BF14: N/A | BG14: 0.19 | BH14: 0.05339805825 | BI14: 0.1680672269 | BJ14: =31/272 -> 0.1139705882 | BK14: N/A | BL14: 0.12 | BM14: 0.1515151515 | BN14: 0.625 | BO14: =8/32 -> 0.25 | BP14: N/A | BQ14: 0.144 | BR14: 0.1649074709 | BS14: 0.2459121104 | BT14: =2192/9014 -> 0.2431772798
J15: 78/523 | K15: 173/595 | L15: 150/664 | O15: 11/50 | P15: 19/59 | Q15: 17/66 | T15: 53/170 | U15: 78/192 | V15: 72/183 | Y15: 26/227 | Z15: 99/233 | AA15: 69/297 | AD15: 61/223 | AE15: 72/224 | AF15: 84/275 | AI15: 284/1563 | AJ15: 397/1728 | AK15: 498/2059 | AN15: 154/470 | AO15: 109/447 | AP15: 179/550 | AS15: 7/48 | AT15: 14/46 | AU15: 14/46 | AX15: 524/2895 | AY15: 725/3027 | AZ15: 885/3438 | BC15: 32/888 | BD15: 179/1007 | BE15: 178/1143 | BH15: 11/206 | BI15: 40/238 | BJ15: 31/272 | BM15: 5/33 | BN15: 20/32 | BO15: 8/32 | BQ15: 1117/7766 | BR15: 1203/6515 | BS15: 1925/7828 | BT15: 2192/ 9014
A16: 7 | B16: Developmental Screening in the First 36 Months of Life | C16: 0.32 | D16: 0.373 | E16: 0.477 | F16: 0.573 | G16: 0.656 | H16: 0.495 | I16: 0.629 | J16: 0.681372549 | K16: 0.691011236 | L16: =146/214 -> 0.6822429907 | M16: 0 | N16: 0.077 | O16: 0.1875 | P16: 0.5 | Q16: =8/12 -> 0.6666666667 | R16: 0.052 | S16: 0.299 | T16: 0.3896103896 | U16: 0.4333333333 | V16: =50/69 -> 0.7246376812 | W16: 0.533 | X16: 0.706 | Y16: 0.7551020408 | Z16: 0.9 | AA16: =101/117 -> 0.8632478632 | AB16: 0.127 | AC16: 0.186 | AD16: 0.3378378378 | AE16: 0.3974358974 | AF16: =28/71 -> 0.3943661972 | AG16: 0.661 | AH16: 0.739 | AI16: 0.7938808374 | AJ16: 0.8399311532 | AK16: =570/670 -> 0.8507462687 | AL16: 0.043 | AM16: 0.126 | AN16: 0.3137254902 | AO16: 0.4360189573 | AP16: =114/210 -> 0.5428571429 | AQ16: 0.182 | AR16: 0.429 | AS16: 0.3571428571 | AT16: 0.625 | AU16: =6/13 -> 0.4615384615 | AV16: 0.17 | AW16: 0.218 | AX16: 0.3660030628 | AY16: 0.4724689165 | AZ16: =662/1251 -> 0.5291766587 | BA16: 0.602 | BB16: 0.732 | BC16: 0.8226744186 | BD16: 0.8284023669 | BE16: =296/347 -> 0.8530259366 | BF16: 0.431 | BG16: 0.4 | BH16: 0.6756756757 | BI16: 0.8 | BJ16: =71/84 -> 0.8452380952 | BK16: 0.667 | BL16: 0.467 | BM16: 0.5833333333 | BN16: 0.8 | BO16: =9/13 -> 0.6923076923 | BP16: 0.359 | BQ16: 0.447 | BR16: 0.5423784494 | BS16: 0.6276060388 | BT16: =2055/3071 -> 0.669163139
J17: 139/204 | K17: 123/178 | L17: 146/214 | O17: 3/16 | P17: 6/12 | Q17: 8/12 | T17: 30/77 | U17: 26/60 | V17: 50/69 | Y17: 74/98 | Z17: 99/110 | AA17: 101/117 | AD17: 25/74 | AE17: 31/78 | AF17: 28/71 | AI17: 493/621 | AJ17: 488/581 | AK17: 570/670 | AN17: 64/204 | AO17: 92/211 | AP17: 114/210 | AS17: 5/14 | AT17: 5/8 | AU17: 6/13 | AX17: 478/1306 | AY17: 532/1126 | AZ17: 662/1251 | BC17: 283/344 | BD17: 280/338 | BE17: 296/347 | BH17: 50/74 | BI17: 52/65 | BJ17: 71/84 | BM17: 7/12 | BN17: 12/15 | BO17: 9/13 | BP17: 1269/3537 | BQ17: 1483/3320 | BR17: 1651/3044 | BS17: 1746/2782 | BT17: 2055/ 3071
A18: 8 | B18: Effective Contraceptive Use | C18: N/A | D18: 0.346 | E18: 0.427 | F18: 0.481 | G18: 0.5 | H18: N/A | I18: 0.368 | J18: 0.4695259594 | K18: 0.5461346633 | L18: =282/504 -> 0.5595238095 | M18: N/A | N18: 0.317 | O18: 0.3571428571 | P18: 0.303030303 | Q18: =12/36 -> 0.3333333333 | R18: N/A | S18: 0.443 | T18: 0.2823529412 | U18: 0.4407894737 | V18: =117/200 -> 0.585 | W18: N/A | X18: 0.496 | Y18: 0.5384615385 | Z18: 0.5128205128 | AA18: =128/236 -> 0.5423728814 | AB18: N/A | AC18: 0.249 | AD18: 0.3886010363 | AE18: 0.5689655172 | AF18: =148/236 -> 0.6271186441 | AG18: N/A | AH18: 0.371 | AI18: 0.4645833333 | AJ18: 0.4695187166 | AK18: =638/1393 -> 0.4580043073 | AL18: N/A | AM18: 0.317 | AN18: 0.5019607843 | AO18: 0.4957627119 | AP18: =140/345 -> 0.4057971014 | AQ18: N/A | AR18: 0.455 | AS18: 0.4642857143 | AT18: 0.3333333333 | AU18: =13/44 -> 0.2954545455 | AV18: N/A | AW18: 0.354 | AX18: 0.4407388404 | AY18: 0.4908662345 | AZ18: =1177/2426 -> 0.4851607585 | BA18: N/A | BB18: 0.422 | BC18: 0.4607407407 | BD18: 0.4815361891 | BE18: =488/873 -> 0.5589919817 | BF18: N/A | BG18: 0.293 | BH18: 0.3875 | BI18: 0.4473684211 | BJ18: =134/233 -> 0.5751072961 | BK18: N/A | BL18: 0.559 | BM18: 0.5769230769 | BN18: 0.6333333333 | BO18: =24/36 -> 0.6666666667 | BP18: 0.348 | BQ18: 0.397 | BR18: 0.4486200822 | BS18: 0.4896010187 | BT18: =3344/6553 -> 0.5103006257
J19: 208/443 | K19: 219/401 | L19: 282/504 | O19: 15/42 | P19: 10/33 | Q19: 12/36 | T19: 48/170 | U19: 67/152 | V19: 117/200 | Y19: 112/208 | Z19: 100/195 | AA19: 128/236 | AD19: 75/193 | AE19: 99/174 | AF19: 148/236 | AI19: 446/960 | AJ19: 439/935 | AK19: 638/1393 | AN19: 128/255 | AO19: 117/236 | AP19: 140/345 | AS19: 13/28 | AT19: 10/30 | AU19: 13/44 | AX19: 859/1949 | AY19: 833/1697 | AZ19: 1177/2426 | BC19: 311/675 | BD19: 326/677 | BE19: 488/873 | BH19: 62/160 | BI19: 68/152 | BJ19: 134/233 | BM19: 15/26 | BN19: 19/30 | BO19: 24/36 | BP19: 1870/5368 | BQ19: 2373/5979 | BR19: 2292/5109 | BS19: 2307/4712 | BT19: 3344/ 6553
A20: 9 | B20: Emergency Department Utilization* | C20: 57.7 | D20: 52.6 | E20: 51.5 | F20: 51.8 | G20: 51.8 | H20: 48.3 | I20: 51.3 | J20: 53.86568095 | K20: 51.11041461 | L20: 47.1 | M20: 22.2 | N20: 39.8 | O20: 42.96116505 | P20: 37.33807468 | Q20: 29.4 | R20: 42.2 | S20: 68.5 | T20: 74.11219763 | U20: 63.00707751 | V20: 66.7 | W20: 45.2 | X20: 48.5 | Y20: 49.50769657 | Z20: 45.84684232 | AA20: 43.5 | AB20: 45.2 | AC20: 50.4 | AD20: 45.55742837 | AE20: 40.05545378 | AF20: 39.4 | AG20: 50.5 | AH20: 61.9 | AI20: 59.73625064 | AJ20: 55.67210673 | AK20: 54.7 | AL20: 41.6 | AM20: 48.8 | AN20: 51.42806562 | AO20: 50.02101723 | AP20: 41.2 | AQ20: 39.6 | AR20: 55.2 | AS20: 45.91458899 | AT20: 32.06772704 | AU20: 41.1 | AV20: 50.8 | AW20: 59.5 | AX20: 59.62517342 | AY20: 53.61970345 | AZ20: 49.5 | BA20: 52.7 | BB20: 63.5 | BC20: 62.71846599 | BD20: 62.805523 | BE20: 54.6 | BF20: 26.8 | BG20: 29.2 | BH20: 29.92352307 | BI20: 30.72220495 | BJ20: 33.9 | BK20: 19.8 | BL20: 26.9 | BM20: 30.07980356 | BN20: 35.0823673 | BO20: 29.5 | BP20: 54 | BQ20: 53.1 | BR20: 57.21499396 | BS20: 53.10148932 | BT20: 51.2
J21: 2419/44908 | K21: 2283/44668 | L21: 2196/ 46666 | O21: 177/4120 | P21: 147/3937 | Q21: 120/4076 | T21: 1296/17487 | U21: 1095/17379 | V21: 1146/ 17189 | Y21: 1071/21633 | Z21: 1004/21899 | AA21: 1051/ 24176 | AD21: 946/20765 | AE21: 809/20197 | AF21: 851/21608 | AI21: 6618/110787 | AJ21: 6130/110109 | AK21: 6556/ 119863 | AN21: 1743/33892 | AO21: 1547/30927 | AP21: 1388/ 33679 | AS21: 186/4051 | AT21: 125/3898 | AU21: 163/3964 | AX21: 12850/215513 | AY21: 11127/207517 | AZ21: 10756/217470 | BC21: 4396/70091 | BD21: 4394/69962 | BE21: 3966/ 72626 | BH21: 583/19483 | BI21: 593/19302 | BJ21: 689/20311 | BM21: 98/3258 | BN21: 115/3278 | BO21: 104/3525 | BP21: 27932/516927 | BQ21: 30170/567804 | BR21: 32383/565988 | BS21: 29369/553073 | BT21: 28983/ 566438
A22: 10 | B22: Emergency Department Utilization for Patients Experiencing Mental Illness* | C22: N/A | D22: N/A | E22: N/A | F22: N/A | G22: 119.5 | H22: N/A | I22: N/A | J22: N/A | K22: N/A | L22: 97.7 | M22: N/A | N22: N/A | O22: N/A | P22: N/A | Q22: 61.8 | R22: N/A | S22: N/A | T22: N/A | U22: N/A | V22: 153.4 | W22: N/A | X22: N/A | Y22: N/A | Z22: N/A | AA22: 108.7 | AB22: N/A | AC22: N/A | AD22: N/A | AE22: N/A | AF22: 86.5 | AG22: N/A | AH22: N/A | AI22: N/A | AJ22: N/A | AK22: 143.4 | AL22: N/A | AM22: N/A | AN22: N/A | AO22: N/A | AP22: 121 | AQ22: N/A | AR22: N/A | AS22: N/A | AT22: N/A | AU22: 93.9 | AV22: N/A | AW22: N/A | AX22: N/A | AY22: N/A | AZ22: 120 | BA22: N/A | BB22: N/A | BC22: N/A | BD22: N/A | BE22: 109.1 | BF22: N/A | BG22: N/A | BH22: N/A | BI22: N/A | BJ22: 73.6 | BK22: N/A | BL22: N/A | BM22: N/A | BN22: N/A | BO22: 75.1 | BP22: N/A | BQ22: N/A | BR22: N/A | BS22: N/A | BT22: 112.7
L23: 665/6806 | Q23: 23/372 | V23: 257/1675 | AA23: 325/2989 | AF23: 220/2542 | AK23: 1936/ 13498 | AP23: 301/2488 | AU23: 31/330 | AZ23: 2320/ 19330 | BE23: 1077/9872 | BJ23: 240/3262 | BO23: 37/493 | BT23: 8887/ 78873
A24: 11 | B24: Follow-Up after Hospitalization for Mental Illness | C24: 0.583 | D24: 0.666 | E24: 0.725 | F24: 0.757 | G24: N/A | H24: 1 | I24: N/A | J24: N/A | K24: N/A | L24: N/A | M24: N/A | N24: N/A | O24: N/A | P24: N/A | Q24: N/A | R24: N/A | S24: N/A | T24: N/A | U24: N/A | V24: N/A | W24: N/A | X24: N/A | Y24: N/A | Z24: N/A | AA24: N/A | AB24: N/A | AC24: N/A | AD24: N/A | AE24: N/A | AF24: N/A | AG24: N/A | AH24: N/A | AI24: N/A | AJ24: N/A | AK24: N/A | AL24: N/A | AM24: N/A | AN24: N/A | AO24: N/A | AP24: N/A | AQ24: N/A | AR24: N/A | AS24: N/A | AT24: N/A | AU24: N/A | AV24: N/A | AW24: N/A | AX24: N/A | AY24: N/A | AZ24: N/A | BA24: N/A | BB24: N/A | BC24: N/A | BD24: N/A | BE24: N/A | BF24: N/A | BG24: N/A | BH24: N/A | BI24: N/A | BJ24: N/A | BK24: N/A | BL24: N/A | BM24: N/A | BN24: N/A | BO24: N/A | BP24: 0.636 | BQ24: 0.7090909091 | BR24: 0.727 | BS24: 0.838 | BT24: N/A
BP25: 35/55 | BQ25: 39/55 | BR25: 64/88 | BS25: 57/68
A26: 12 | B26: Depression Screening and Follow Up Plan | C26: N/A | D26: 0.204 | E26: 0.25 | F26: 0.529 | G26: 0.603 | H26: 0.9259259259 | I26: 0.7311827957 | J26: 0.576 | K26: 0.6426491994 | L26: 0.857 | M26: N/A | N26: N/A | O26: N/A | P26: N/A | Q26: N/A | R26: N/A | S26: N/A | T26: 0.05388471178 | U26: 0.3239247312 | V26: 0.603 | W26: 0.7452830189 | X26: 0.1457627119 | Y26: 0.3220338983 | Z26: 0.2175141243 | AA26: 0.34 | AB26: N/A | AC26: N/A | AD26: 0.4596273292 | AE26: 0.838150289 | AF26: 0.874 | AG26: 0.1618625277 | AH26: 0.2820676452 | AI26: 0.5641588068 | AJ26: 0.6308443824 | AK26: 0.67 | AL26: 0.08143564356 | AM26: 0.1319776715 | AN26: 0.2909636295 | AO26: 0.3219076006 | AP26: 0.253 | AQ26: N/A | AR26: N/A | AS26: N/A | AT26: N/A | AU26: N/A | AV26: 0.1584425598 | AW26: 0.1397379913 | AX26: 0.6825127334 | AY26: 0.5291881618 | AZ26: 0.797 | BA26: 0.1612705232 | BB26: 0.4188989665 | BC26: 0.5715844345 | BD26: 0.684441198 | BE26: 0.711 | BF26: 0.7269303202 | BG26: 0.7332089552 | BH26: 0.2429718876 | BI26: 0.5992167102 | BJ26: 0.581 | BK26: 0.7941176471 | BL26: 0.6808510638 | BM26: 0.79 | BN26: 0.8086956522 | BO26: 0.793 | BP26: 0.1613716894 | BQ26: 0.3295417746 | BR26: 0.521 | BS26: 0.573 | BT26: 0.677
H27: 25/27 | I27: 680/930 | J27: 668/1159 | K27: 883/1374 | L27: 1281/1494 | T27: 43/798 | U27: 241/744 | V27: 516/856 | W27: 158/212 | X27: 43/295 | Y27: 19/59 | Z27: 154/708 | AA27: 123/362 | AD27: 148/322 | AE27: 728/865 | AF27: 429/491 | AG27: 219/1353 | AH27: 2210/7835* | AI27: 5144/9118* | AJ27: 1808/2866 | AK27: 2049/3056 | AL27: 329/4040 | AM27: 331/2508 | AN27: 776/2667 | AO27: 864/2684 | AP27: 251/993 | AV27: 411/2594 | AW27: 416/2977 | AX27: 2010/2945 | AY27: 1949/3683 | AZ27: 1954/2452 | BA27: 1051/6517 | BB27: 3972/9482* | BC27: 4715/8249* | BD27: 4685/6845* | BE27: 6813/9578 | BF27: 386/531 | BG27: 393/536 | BH27: 363/1494 | BI27: 459/766 | BJ27: 516/888 | BK27: 108/136 | BL27: 96/141 | BM27: 79/100 | BN27: 93/115 | BO27: 119/150 | BP27: 2687/16651 | BQ27: 8141/24704 | BR27: 13965/26783 | BS27: 11864/24404 | BT27: 14089/20807
A28: 13 | B28: Controlling High Blood Pressure | C28: N/A | D28: 0.552 | E28: 0.621 | F28: 0.669 | G28: 0.69 | H28: 0.5441176471 | I28: 0.6125 | J28: 0.6265432099 | K28: 0.672801636 | L28: 0.584 | M28: N/A | N28: N/A | O28: N/A | P28: N/A | Q28: N/A | R28: 0.2660550459 | S28: N/A | T28: 0.5568181818 | U28: 0.311827957 | V28: 0.6 | W28: 0.6428571429 | X28: 0.5860766325 | Y28: 0.5497076023 | Z28: 0.6091370558 | AA28: 0.38 | AB28: N/A | AC28: N/A | AD28: 0.5138888889 | AE28: 0.5813953488 | AF28: 0.516 | AG28: 0.7924778761 | AH28: 0.5502028398 | AI28: 0.5714285714 | AJ28: 0.5826446281 | AK28: 0.569 | AL28: 0.150818222 | AM28: 0.518442623 | AN28: 0.5939849624 | AO28: 0.6681681682 | AP28: 0.744 | AQ28: N/A | AR28: N/A | AS28: N/A | AT28: N/A | AU28: N/A | AV28: 0.4612954186 | AW28: 0.5669533822 | AX28: 0.6811305732 | AY28: 0.6828787381 | AZ28: 0.637 | BA28: 0.5833807627 | BB28: 0.6758361988 | BC28: 0.6696121748 | BD28: 0.6815642458 | BE28: 0.551 | BF28: 0.6036585366 | BG28: 0.58 | BH28: 0.4065335753 | BI28: 0.6470588235 | BJ28: 0.605 | BK28: 0.4871794872 | BL28: 0.4444444444 | BM28: 0.5471698113 | BN28: 0.6 | BO28: 0.537 | BP28: 0.5117031873 | BQ28: 0.5905330882 | BR28: 0.639 | BS28: 0.67 | BT28: 0.581
H29: 37/68 | I29: 196/320 | J29: 203/324 | K29: 329/489 | L29: 250/428 | R29: 29/109 | T29: 49/88 | U29: 59/93 | V29: 78/130 | W29: 477/742 | X29: 1086/1853 | Y29: 94/171 | Z29: 120/197 | AA29: 41/108 | AD29: 37/72 | AE29: 75/129 | AF29: 63/122 | AG29: 1791/2260 | AH29: 1085/1972 | AI29: 1220/2135 | AJ29: 282/484 | AK29: 332/583 | AL29: 341/2261 | AM29: 253/488 | AN29: 316/532 | AO29: 445/666 | AP29: 169/227 | AV29: 292/633 | AW29: 5339/9417 | AX29: 3422/5024 | AY29: 4156/6086 | AZ29: 2501/3925 | BA29: 1025/1757 | BB29: 2162/3199 | BC29: 2728/4074* | BD29: 244/358 | BE29: 3068/5572 | BF29: 99/164 | BG29: 116/200 | BH29: 224/551 | BI29: 121/187 | BJ29: 124/205 | BK29: 19/39 | BL29: 20/45 | BM29: 29/53 | BN29: 27/45 | BO29: 22/41 | BP29: 4110/8032 | BQ29: 11565/19584 | BR29: 8322/13024 | BS29: 5819/8682 | BT29: 6673/ 11479
A30: 14 | B30: Diabetes HbA1c Poor Control* | C30: N/A | D30: 0.34 | E30: 0.234 | F30: 0.235 | G30: 0.28 | H30: 0.2 | I30: 0.2042253521 | J30: 0.4550898204 | K30: 0.3585858586 | L30: 0.259 | M30: N/A | N30: N/A | O30: N/A | P30: N/A | Q30: N/A | R30: 0.17 | S30: N/A | T30: 0.102 | U30: 0.1805555556 | V30: 0.268 | W30: 0.8764940239 | X30: 0.1620839363 | Y30: 0.3157894737 | Z30: 0.3448275862 | AA30: 0.27 | AB30: N/A | AC30: N/A | AD30: 0.4736842105 | AE30: 0.1710526316 | AF30: 0.31 | AG30: 0.5565749235 | AH30: 0.4131413141 | AI30: 0.3074484945 | AJ30: 0.2951807229 | AK30: 0.283 | AL30: 0.06707033069 | AM30: 0.3333333333 | AN30: 0.3924418605 | AO30: 0.4031180401 | AP30: 0.476 | AQ30: N/A | AR30: N/A | AS30: N/A | AT30: N/A | AU30: N/A | AV30: 0.4301369863 | AW30: 0.2102908277 | AX30: 0.2972614841 | AY30: 0.2869936034 | AZ30: 0.307 | BA30: 0.1228813559 | BB30: 0.4509803922 | BC30: 0.19054242 | BD30: 0.2369942197 | BE30: 0.217 | BF30: 0.2978723404 | BG30: 0.2833333333 | BH30: 0.2307692308 | BI30: 0.3157894737 | BJ30: 0.338 | BK30: 0 | BL30: 0.3846153846 | BM30: 0.25 | BN30: 0.1666666667 | BO30: 0.188 | BP30: 0.2074349442 | BQ30: 0.2636862535 | BR30: 0.265 | BS30: 0.3 | BT30: 0.27
H31: 16/80 | I31: 29/142 | J31: 76/167 | K31: 71/198 | L31: 50/193 | R31: 17/100 | T31: 66/646* | U31: 13/72 | V31: 22/82 | W31: 220/251 | X31: 112/691 | Y31: 24/76 | Z31: 30/87 | AA31: 24/89 | AD31: 18/38 | AE31: 13/76 | AF31: 18/58 | AG31: 182/327 | AH31: 459/1111 | AI31: 388/1262 | AJ31: 98/332 | AK31: 104/368 | AL31: 144/2147 | AM31: 108/324 | AN31: 135/344 | AO31: 181/449 | AP31: 78/164 | AV31: 157/365 | AW31: 658/3129 | AX31: 673/2264 | AY31: 673/2345 | AZ31: 552/1797 | BA31: 87/708 | BB31: 575/1275 | BC31: 274/1438 | BD31: 41/173 | BE31: 417/1925 | BF31: 14/47 | BG31: 17/60 | BH31: 27/117 | BI31: 18/57 | BJ31: 22/65 | BK31: 0/10 | BL31: 5/13 | BM31: 3/12 | BN31: 2/12 | BO31: 3/16 | BP31: 837/4035 | BQ31: 1970/7471 | BR31: 1684/6364 | BS31: 1140/3801 | BT31: 1312/4851
A32: 15 | B32: Cigarette Smoking Prevalence* | C32: N/A | D32: N/A | E32: N/A | F32: 0.3 | G32: 0.25 | H32: N/A | I32: N/A | J32: 0.3404500866 | K32: 0.2603674541 | L32: 0.221 | M32: N/A | N32: N/A | O32: N/A | P32: N/A | Q32: N/A | R32: N/A | S32: N/A | T32: N/A | U32: 0.3507462687 | V32: 0.292 | W32: N/A | X32: N/A | Y32: N/A | Z32: 0.1163556531 | AA32: 0.17 | AB32: N/A | AC32: N/A | AD32: 0.4927536232 | AE32: 0.3935018051 | AF32: 0.404 | AG32: N/A | AH32: N/A | AI32: 0.3186675047 | AJ32: 0.210106383 | AK32: 0.101 | AL32: N/A | AM32: N/A | AN32: 0.3866348449 | AO32: 0.3393393393 | AP32: 0.403 | AQ32: N/A | AR32: N/A | AS32: N/A | AT32: N/A | AU32: N/A | AV32: N/A | AW32: N/A | AX32: 0.2628015235 | AY32: 0.2022408964 | AZ32: 0.174 | BA32: N/A | BB32: N/A | BC32: 0.2929254302 | BD32: 0.3156732892 | BE32: 0.434 | BF32: N/A | BG32: N/A | BH32: 0.2927170868 | BI32: 0.2316491897 | BJ32: 0.252 | BK32: N/A | BL32: N/A | BM32: 0.2528735632 | BN32: 0.2413793103 | BO32: 0.265 | BP32: N/A | BQ32: N/A | BR32: 31%*** | BS32: 0.245 | BT32: 0.202
J33: 590/1733 | K33: 496/1905 | L33: 78/353 | U33: 47/134 | V33: 220/753 | Z33: 106/911 | AA33: 131/772 | AD33: 204/414 | AE33: 327/831 | AF33: 306/758 | AI33: 507/1591 | AJ33: 237/1128 | AK33: 294/2911 | AN33: 162/419 | AO33: 113/333 | AP33: 135/335 | AX33: 621/2363 | AY33: 1083/5355 | AZ33: 338/1941 | BC33: 766/2615 | BD33: 715/2265 | BE33: 69/159 | BH33: 209/714 | BI33: 243/1049 | BJ33: 184/729 | BM33: 44/174 | BN33: 42/174 | BO33: 35/132 | BR33: 3103/10023 | BS33: 3409/14085 | BT33: 1790/ 8843
A34: 16 | B34: PCPCH Enrollment | C34: 0.6 | D34: 0.6 | E34: 0.6 | F34: 0.6 | G34: 0.6 | H34: N/A | I34: N/A | J34: N/A | K34: N/A | L34: N/A | M34: N/A | N34: N/A | O34: N/A | P34: N/A | Q34: N/A | R34: N/A | S34: N/A | T34: N/A | U34: N/A | V34: N/A | W34: N/A | X34: N/A | Y34: N/A | Z34: N/A | AA34: N/A | AB34: N/A | AC34: N/A | AD34: N/A | AE34: N/A | AF34: N/A | AG34: N/A | AH34: N/A | AI34: N/A | AJ34: N/A | AK34: N/A | AL34: N/A | AM34: N/A | AN34: N/A | AO34: N/A | AP34: N/A | AQ34: N/A | AR34: N/A | AS34: N/A | AT34: N/A | AU34: N/A | AV34: N/A | AW34: N/A | AX34: N/A | AY34: N/A | AZ34: N/A | BA34: N/A | BB34: N/A | BC34: N/A | BD34: N/A | BE34: N/A | BF34: N/A | BG34: N/A | BH34: N/A | BI34: N/A | BJ34: N/A | BK34: N/A | BL34: N/A | BM34: N/A | BN34: N/A | BO34: N/A | BP34: 0.61 | BQ34: 0.735 | BR34: 0.851 | BS34: 68.9%** | BT34: 0.729
A36: 17 | B36: EHR Adoption | C36: 0.478 | D36: 0.63 | E36: N/A | F36: N/A | G36: N/A | H36: N/A | I36: N/A | J36: N/A | K36: N/A | L36: N/A | M36: N/A | N36: N/A | O36: N/A | P36: N/A | Q36: N/A | R36: N/A | S36: N/A | T36: N/A | U36: N/A | V36: N/A | W36: N/A | X36: N/A | Y36: N/A | Z36: N/A | AA36: N/A | AB36: N/A | AC36: N/A | AD36: N/A | AE36: N/A | AF36: N/A | AG36: N/A | AH36: N/A | AI36: N/A | AJ36: N/A | AK36: N/A | AL36: N/A | AM36: N/A | AN36: N/A | AO36: N/A | AP36: N/A | AQ36: N/A | AR36: N/A | AS36: N/A | AT36: N/A | AU36: N/A | AV36: N/A | AW36: N/A | AX36: N/A | AY36: N/A | AZ36: N/A | BA36: N/A | BB36: N/A | BC36: N/A | BD36: N/A | BE36: N/A | BF36: N/A | BG36: N/A | BH36: N/A | BI36: N/A | BJ36: N/A | BK36: N/A | BL36: N/A | BM36: N/A | BN36: N/A | BO36: N/A | BP36: 0.6 | BQ36: 0.704 | BR36: 0.688 | BS36: N/A | BT36: N/A
BP37: 229/382
A38: 18 | B38: Timeliness of Prenatal Care | C38: 0.795 | D38: 0.9 | E38: 0.93 | F38: 0.91 | G38: 0.917 | H38: 0.963 | I38: 0.7407407407 | J38: 0.8965517241 | K38: 1 | L38: =39/42 -> 0.9285714286 | M38: N/A | N38: 1 | O38: 1 | P38: 1 | Q38: 1 | R38: 1 | S38: 1 | T38: 1 | U38: 0.9166666667 | V38: =7/8 -> 0.875 | W38: 1 | X38: 1 | Y38: 1 | Z38: 0.9285714286 | AA38: =7/8 -> 0.875 | AB38: 1 | AC38: 0.8888888889 | AD38: 1 | AE38: 0.75 | AF38: =12/13 -> 0.9230769231 | AG38: 0.951 | AH38: 0.9259259259 | AI38: 0.8811881188 | AJ38: 0.9139784946 | AK38: =20/21 -> 0.9523809524 | AL38: 0.9230769231 | AM38: 0.8 | AN38: 0.9285714286 | AO38: 0.9565217391 | AP38: =20/21 -> 0.9523809524 | AQ38: N/A | AR38: 0.6 | AS38: 0.75 | AT38: 1 | AU38: N/A | AV38: 0.9745762712 | AW38: 0.8888888889 | AX38: 0.9378881988 | AY38: 0.9113924051 | AZ38: =149/160 -> 0.93125 | BA38: 0.96875 | BB38: 0.8679245283 | BC38: 1 | BD38: 0.9565217391 | BE38: =47/51 -> 0.9215686275 | BF38: 1 | BG38: 0.9090909091 | BH38: 1 | BI38: 1 | BJ38: =6/7 -> 0.8571428571 | BK38: N/A | BL38: 1 | BM38: 1 | BN38: 1 | BO38: =3/3 -> 1 | BP38: 0.969 | BQ38: 0.914 | BR38: 0.931 | BS38: 0.929 | BT38: 0.924
H39: 26/27 | I39: 20/27 | J39: 26/29 | K39: 38/384 | L39: 39/42 | N39: 1/1 | O39: 3/3 | P39: 1/1 | Q39: 2/2 | R39: 6/6 | S39: 8/8 | T39: 6/6 | U39: 11/12 | V39: 7/8 | W39: 9/9 | X39: 12/12 | Y39: 18/18 | Z39: 13/14 | AA39: 7/8 | AB39: 9/9 | AC39: 8/9 | AD39: 12/12 | AE39: 6/8 | AF39: 12/13 | AG39: 58/61 | AH39: 75/81 | AI39: 89/101 | AJ39: 85/93 | AK39: 20/21 | AL39: 12/13 | AM39: 12/15 | AN39: 26/28 | AO39: 22/23 | AP39: 20/21 | AR39: 3/5 | AS39: 3/4 | AT39: 1/1 | AV39: 115/118 | AW39: 160/180 | AX39: 151/161 | AY39: 144/158 | AZ39: 149/160 | BA39: 31/32 | BB39: 46/53 | BC39: 31/31 | BD39: 44/46 | BE39: 47/51 | BF39: 8/8 | BG39: 10/11 | BH39: 10/10 | BI39: 13/13 | BJ39: 6/7 | BL39: 2/2 | BM39: 4/4 | BN39: 1/1 | BO39: 3/3 | BP39: 279/288 | BQ39: 371/406 | BR39: 379/407 | BS39: 378/407 | BT39: 375/406
A40: 19 | B40: CAHPS Access to Care | C40: 0.857 | D40: 0.868 | E40: 0.843 | F40: 0.837 | G40: 78.2%/88.8% | H40: N/A | I40: N/A | J40: 0.844 | K40: 0.821 | L40: N/A | M40: N/A | N40: N/A | O40: N/A | P40: N/A | Q40: N/A | R40: N/A | S40: N/A | T40: N/A | U40: N/A | V40: N/A | W40: N/A | X40: N/A | Y40: N/A | Z40: N/A | AA40: N/A | AB40: N/A | AC40: N/A | AD40: N/A | AE40: N/A | AF40: N/A | AG40: N/A | AH40: N/A | AI40: N/A | AJ40: N/A | AK40: N/A | AL40: N/A | AM40: N/A | AN40: N/A | AO40: N/A | AP40: N/A | AQ40: N/A | AR40: N/A | AS40: N/A | AT40: N/A | AU40: N/A | AV40: N/A | AW40: N/A | AX40: N/A | AY40: N/A | AZ40: N/A | BA40: N/A | BB40: N/A | BC40: N/A | BD40: N/A | BE40: N/A | BF40: N/A | BG40: N/A | BH40: N/A | BI40: N/A | BJ40: N/A | BK40: N/A | BL40: N/A | BM40: N/A | BN40: N/A | BO40: N/A | BP40: 0.848 | BQ40: 0.823 | BR40: 0.817 | BS40: 0.837 | BT40: 82.3%/89.2%
A42: 20 | B42: CAHPS Satisfaction with Care | C42: 0.865 | D42: 0.853 | E42: 0.892 | F42: 0.867 | G42: N/A | H42: N/A | I42: N/A | J42: 0.75 | K42: 0.955 | L42: N/A | M42: N/A | N42: N/A | O42: N/A | P42: N/A | Q42: N/A | R42: N/A | S42: N/A | T42: N/A | U42: N/A | V42: N/A | W42: N/A | X42: N/A | Y42: N/A | Z42: N/A | AA42: N/A | AB42: N/A | AC42: N/A | AD42: N/A | AE42: N/A | AF42: N/A | AG42: N/A | AH42: N/A | AI42: N/A | AJ42: N/A | AK42: N/A | AL42: N/A | AM42: N/A | AN42: N/A | AO42: N/A | AP42: N/A | AQ42: N/A | AR42: N/A | AS42: N/A | AT42: N/A | AU42: N/A | AV42: N/A | AW42: N/A | AX42: N/A | AY42: N/A | AZ42: N/A | BA42: N/A | BB42: N/A | BC42: N/A | BD42: N/A | BE42: N/A | BF42: N/A | BG42: N/A | BH42: N/A | BI42: N/A | BJ42: N/A | BK42: N/A | BL42: N/A | BM42: N/A | BN42: N/A | BO42: N/A | BP42: 0.833 | BQ42: 0.874 | BR42: 0.847 | BS42: 0.868 | BT42: N/A
B44: *Lower is better
B45: **Measurement changed
B46: ***EOCCO still met metric

Sheet EOCCO
A1: EOCCO Incentive Measure Performance
C2: EOCCO Targets | H2: EOCCO Final Rates
C3: 2014 | D3: 2015 | E3: 2016 | F3: 2017 | G3: 2018 | H3: 2014 | I3: 2015 | J3: 2016 | K3: 2017 | L3: 2018*
A4: 1 | B4: Adolescent Well Care Visits | C4: 0.258 | D4: 0.277 | E4: ='[1]County Summary (2)'!$C$28 -> 0.291 | F4: ='[2]EOCCO Summary'!$D$13 -> 0.373 | G4: 0.406 | H4: 0.239 | I4: 0.255 | J4: ='[3]Compare to State'!$H$13 -> 0.3512154233 | K4: ='[2]EOCCO Summary'!$H$13 -> 0.3857999676 | L4: =194/504 -> 0.3849206349
H5: 1579/6602 | I5: 1650/6483 | J5: ='[3]Compare to State'!$G$13 -> 2095/5965 | K5: ='[2]EOCCO Summary'!$G$13 -> 2380/6169 | L5: 194/504
A6: 2 | B6: Alcohol and Drug Misuse: SBIRT | C6: 0.038 | D6: 0.079 | E6: ='[1]County Summary (2)'!$D$28 -> 0.118 | F6: ='[2]EOCCO Summary'!$D$25 -> 0.15 | G6: 0.12 | H6: 0.055 | I6: 0.088 | J6: ='[3]Compare to State'!$H$14 -> 0.1692911927 | K6: ='[2]EOCCO Summary'!$H$25 -> 0.1525868533 | L6: 0.159
H7: 965/17671 | I7: 2105/23846 | J7: ='[3]Compare to State'!$G$14 -> 4569/26989 | K7: ='[2]EOCCO Summary'!$G$25 -> 3663/24006 | L7: 3648/22974
A8: 3 | B8: Assessments for Children in DHS Custody | C8: 0.588 | D8: 0.382 | E8: 0.645 | F8: 0.76 | G8: 0.862 | H8: 0.324 | I8: 0.615 | J8: =65/89 -> 0.7303370787 | K8: 0.832 | L8: 0.697
H9: 12/37 | I9: 64/104 | J9: 65/89 | K9: 89/107
A10: 4 | B10: Childhood Immunization Status Combo 2 | C10: N/A | D10: N/A | E10: ='[1]County Summary (2)'!$J$28 -> 0.741 | F10: ='[2]EOCCO Summary'!$D$14 -> 0.729 | G10: 0.791 | H10: N/A | I10: 0.733 | J10: ='[3]Compare to State'!$H$18 -> 0.7078142695 | K10: ='[2]EOCCO Summary'!$H$14 -> 0.7730673317 | L10: 0.744
I11: 801/1093 | J11: ='[3]Compare to State'!$G$18 -> 625/883 | K11: ='[2]EOCCO Summary'!$G$14 -> 620/802 | L11: 669/899
A12: 5 | B12: Colorectal Cancer Screening | C12: 0.47 | D12: 0.383 | E12: ='[1]County Summary (2)'!$I$28 -> 0.39 | F12: ='[2]EOCCO Summary'!$D$15 -> 0.439 | G12: 0.468 | H12: =145/411 -> 0.3527980535 | I12: 0.36 | J12: 0.409 | K12: 0.448 | L12: 0.451
H13: 145/411 | I13: 148/411 | J13: 168/411 | K13: 184/411 | L13: 1659/3679
A14: 6 | B14: Dental Sealants | C14: N/A | D14: 0.079 | E14: ='[1]County Summary (2)'!$F$28 -> 0.174 | F14: ='[2]EOCCO Summary'!$D$16 -> 0.2 | G14: 0.229 | H14: N/A | I14: 0.144 | J14: ='[3]Compare to State'!$H$19 -> 0.1649074709 | K14: ='[2]EOCCO Summary'!$H$16 -> 0.2459121104 | L14: 0.242
I15: 1117/7766 | J15: ='[3]Compare to State'!$G$19 -> 1203/6515 | K15: ='[2]EOCCO Summary'!$G$16 -> 1925/7828 | L15: 2181/9026
A16: 7 | B16: Developmental Screening in the First 36 Months of Life | C16: 0.32 | D16: 0.373 | E16: ='[1]County Summary (2)'!$G$28 -> 0.477 | F16: ='[2]EOCCO Summary'!$D$19 -> 0.573 | G16: 0.656 | H16: 0.359 | I16: 0.447 | J16: ='[3]Compare to State'!$H$22 -> 0.5423784494 | K16: ='[2]EOCCO Summary'!$H$19 -> 0.6276060388 | L16: 0.672
H17: 1269/3537 | I17: 1483/3320 | J17: ='[3]Compare to State'!$G$22 -> 1651/3044 | K17: ='[2]EOCCO Summary'!$G$19 -> 1746/2782 | L17: 2061/3069
A18: 8 | B18: Effective Contraceptive Use | C18: N/A | D18: 0.346 | E18: ='[1]County Summary (2)'!$H$28 -> 0.427 | F18: ='[2]EOCCO Summary'!$D$20 -> 0.481 | G18: 0.5 | H18: 0.348 | I18: 0.397 | J18: ='[3]Compare to State'!$H$23 -> 0.4486200822 | K18: ='[2]EOCCO Summary'!$H$20 -> 0.4896010187 | L18: 0.444
H19: 1870/5368 | I19: 2373/5979 | J19: ='[3]Compare to State'!$G$23 -> 2292/5109 | K19: ='[2]EOCCO Summary'!$G$20 -> 2307/4712 | L19: 3030/6822
A20: 9 | B20: Emergency Department Utilization* | C20: 57.7 | D20: 52.6 | E20: ='[1]County Summary (2)'!$E$28 -> 51.5 | F20: ='[2]EOCCO Summary'!$D$23 -> 51.8 | G20: 51.8 | H20: 54 | I20: 53.1 | J20: ='[3]Compare to State'!$H$17 -> 57.21499396 | K20: ='[2]EOCCO Summary'!$H$23 -> 53.10148932 | L20: 48.7
H21: 27932/516927 | I21: 30170/567804 | J21: ='[3]Compare to State'!$G$17 -> 32383/565988 | K21: ='[2]EOCCO Summary'!$G$23 -> 29369/553073 | L21: 28300/581103
A22: 10 | B22: Emergency Department Utilization for Patients Experiencing Mental Illness* | C22: N/A | D22: N/A | E22: N/A | F22: N/A | G22: 119.5 | H22: N/A | I22: N/A | J22: N/A | K22: N/A | L22: 102.7
L23: 9268/90223
A24: 11 | B24: Follow-Up after Hospitalization for Mental Illness | C24: 0.583 | D24: 0.666 | E24: 0.725 | F24: 0.757 | G24: N/A | H24: 0.636 | I24: =39/55 -> 0.7090909091 | J24: ='[3]Compare to State'!$F$26 -> 0.727 | K24: 0.838 | L24: N/A
H25: 35/55 | I25: 39/55 | J25: ='[3]Compare to State'!$E$26 -> 64/88 | K25: 57/68
A26: 12 | B26: Depression Screening and Follow Up Plan | C26: N/A | D26: 0.204 | E26: 0.25 | F26: 0.529 | G26: 0.603 | H26: =2687/16651 -> 0.1613716894 | I26: =8141/24704 -> 0.3295417746 | J26: 0.521 | K26: 0.573 | L26: N/A
H27: 2687/16651 | I27: 8141/24704 | J27: 13965/26783 | K27: 11864/24404
A28: 13 | B28: Controlling High Blood Pressure | C28: N/A | D28: 0.552 | E28: 0.621 | F28: 0.669 | G28: 0.69 | H28: =4110/8032 -> 0.5117031873 | I28: =11565/19584 -> 0.5905330882 | J28: 0.639 | K28: 0.67 | L28: N/A
H29: 4110/8032 | I29: 11565/19584 | J29: 8322/13024 | K29: 5819/8682
A30: 14 | B30: Diabetes HbA1c Poor Control* | C30: N/A | D30: 0.34 | E30: 0.234 | F30: 0.235 | G30: 0.28 | H30: =837/4035 -> 0.2074349442 | I30: =1970/7471 -> 0.2636862535 | J30: 0.265 | K30: 0.3 | L30: N/A
H31: 837/4035 | I31: 1970/7471 | J31: 1684/6364 | K31: 1140/3801
A32: 15 | B32: Cigarette Smoking Prevalence* | C32: N/A | D32: N/A | E32: N/A | F32: 0.3 | G32: 0.25 | H32: N/A | I32: N/A | J32: 31%*** | K32: 0.245 | L32: N/A
J33: 3103/10023 | K33: 3409/14085
A34: 16 | B34: PCPCH Enrollment | C34: 0.6 | D34: 0.6 | E34: 0.6 | F34: 0.6 | G34: 0.6 | H34: 0.61 | I34: 0.735 | J34: 0.851 | K34: 68.9%** | L34: N/A
A36: 17 | B36: EHR Adoption | C36: 0.478 | D36: 0.63 | E36: N/A | F36: N/A | G36: N/A | H36: 0.6 | I36: 0.704 | J36: 0.688 | K36: N/A | L36: N/A
H37: 229/382
A38: 18 | B38: Timeliness of Prenatal Care | C38: 0.795 | D38: 0.9 | E38: 0.93 | F38: 0.91 | G38: 0.917 | H38: 0.969 | I38: 0.914 | J38: 0.931 | K38: 0.929 | L38: N/A
H39: 279/288 | I39: 371/406 | J39: 379/407 | K39: 378/407
A40: 19 | B40: CAHPS Access to Care | C40: 0.857 | D40: 0.868 | E40: 0.843 | F40: 0.837 | G40: 78.2%/88.8% | H40: 0.848 | I40: 0.823 | J40: 0.817 | K40: 0.837 | L40: N/A
A42: 20 | B42: CAHPS Satisfaction with Care | C42: 0.865 | D42: 0.853 | E42: 0.892 | F42: 0.867 | G42: N/A | H42: 0.833 | I42: 0.874 | J42: 0.847 | K42: 0.868 | L42: N/A
B44: *Lower is better
B45: **Measurement changed
B46: ***EOCCO still met metric
